lending/lending_fUSD_20250429
["ID","MTS","AMOUNT","RATE_DAILY","PERIOD"]
[359349496,1745947860124,-470.0,0.00027945,2]
[359349497,1745947860133,-470.0,0.00027945,2]
[359349498,1745947860143,-470.0,0.00027945,2]
[359349499,1745947860152,-479.49,0.00027945,2]
[359349500,1745947860162,-470.0,0.00027945,2]
[359349501,1745947860171,-662.13,0.00027945,2]
[359349502,1745947860181,-3803.28,0.00027945,2]
[359349503,1745947860191,-470.0,0.00027945,2]
[359349504,1745947860200,-530.0,0.00027945,2]
[359349505,1745947860210,-470.0,0.00027945,2]
[359349506,1745947860220,-470.0,0.00027945,2]
[359349507,1745947860229,-470.0,0.00027945,2]
[359349508,1745947860239,-199.03,0.00027945,2]
[359349509,1745947860248,-510.17,0.00027945,2]
[359349510,1745947860259,-470.0,0.00027945,2]
[359349511,1745947860269,-150.0,0.00027945,2]
[359349512,1745947860279,-589.24,0.00027945,2]
[359349513,1745947860289,-470.0,0.00027945,2]
[359349514,1745947860299,-500.0,0.00027973,5]
[359349515,1745947860309,-500.0,0.00027973,5]
[359349516,1745947860319,-500.0,0.00027973,5]
[359349517,1745947860329,-151.0,0.00027973,7]
[359349518,1745947860339,-151.0,0.00027973,7]
[359349519,1745947860349,-151.0,0.00027973,7]
[359349520,1745947860359,-2303.58915108,0.00028,2]
[359349521,1745947860371,-150.2561415,0.00028109,4]
[359349522,1745947860381,-1381.52359737,0.00028119,2]
[359349523,1745947860391,-151.0,0.00028199,7]
[359349524,1745947860400,-231.86681,0.00028199,7]
[359349525,1745947860410,-151.0,0.00028199,7]
[359349526,1745947860421,-151.0,0.00028199,7]
[359349527,1745947860431,-151.0,0.00028199,7]
[359349528,1745947860441,-151.0,0.00028199,7]
[359349529,1745947860451,-269.7,0.000282,2]
[359349530,1745947860462,-1183.48,0.000282,2]
[359349531,1745947860472,-151.0,0.00028208,7]
[359349532,1745947860482,-151.0,0.00028208,7]
[359349533,1745947860492,-151.0,0.00028208,7]
[359349534,1745947860502,-151.0,0.00028208,7]
[359349535,1745947860511,-3833.77144741,0.0002821,2]
[359349536,1745947860521,-300.0,0.00028218,10]
[359349537,1745947860531,-500.0,0.00028218,2]
[359349538,1745947860542,-167.99267196,0.00028218,2]
[359349539,1745947860552,-500.0,0.00028218,2]
[359349540,1745947860562,-300.0,0.00028218,10]
[359349541,1745947860573,-470.0,0.00028218,2]
[359349542,1745947860583,-470.0,0.00028218,2]
[359349543,1745947860592,-470.0,0.00028218,2]
[359349544,1745947860602,-470.0,0.00028218,2]
[359349545,1745947860614,-250.0,0.00028218,2]
[359349546,1745947860623,-470.0,0.00028218,2]
[359349547,1745947860633,-471.63,0.00028218,2]
[359349548,1745947860643,-703.84,0.00028218,2]
[359349549,1745947860655,-470.0,0.00028218,2]
[359349550,1745947860665,-369.42340212,0.00028218,2]
[359349551,1745947860674,-470.0,0.00028218,2]
[359349552,1745947860684,-470.0,0.00028218,2]
[359349553,1745947860695,-470.0,0.00028218,2]
[359349554,1745947860705,-611.16,0.00028218,2]
[359349555,1745947860715,-489.64,0.00028218,2]
[359349556,1745947860725,-740.05,0.00028218,2]
[359349557,1745947860735,-470.0,0.00028218,2]
[359349558,1745947860745,-470.0,0.00028218,2]
[359349559,1745947860754,-472.19,0.00028218,2]
[359349560,1745947860764,-470.0,0.00028218,2]
[359349561,1745947860775,-470.0,0.00028218,2]
[359349562,1745947860786,-508.61,0.00028218,2]
[359349563,1745947860796,-499.01,0.00028218,2]
[359349564,1745947860806,-500.0,0.00028218,2]
[359349565,1745947860816,-566.91,0.00028218,2]
[359349566,1745947860826,-525.69,0.00028218,2]
[359349567,1745947860835,-470.0,0.00028218,2]
[359349568,1745947860845,-470.0,0.00028218,2]
[359349569,1745947860855,-569.74,0.00028218,2]
[359349570,1745947860865,-535.88,0.00028218,2]
[359349571,1745947860875,-413.25574058,0.00028218,2]
[359349572,1745947860885,-500.0,0.00028218,2]
[359349573,1745947860895,-470.0,0.00028218,2]
[359349574,1745947860905,-530.48987455,0.00028218,2]
[359349575,1745947860915,-470.0,0.00028218,2]
[359349576,1745947860925,-500.0,0.00028218,2]
[359349577,1745947860935,-500.0,0.00028218,2]
[359349578,1745947860945,-471.92,0.00028218,2]
[359349579,1745947860955,-470.0,0.00028218,2]
[359349580,1745947860965,-470.0,0.00028218,2]
[359349581,1745947860975,-500.0,0.00028218,2]
[359349582,1745947860985,-500.0,0.00028218,2]
[359349583,1745947860995,-470.0,0.00028218,2]
[359349584,1745947861005,-470.0,0.00028218,2]
[359349585,1745947861015,-470.0,0.00028218,2]
[359349586,1745947861025,-470.0,0.00028218,2]
[359349587,1745947861035,-470.0,0.00028218,2]
[359349588,1745947861045,-470.0,0.00028218,2]
[359349589,1745947861055,-470.0,0.00028218,2]
[359349590,1745947861065,-500.0,0.00028218,2]
[359349591,1745947861075,-591.97,0.00028218,2]
[359349592,1745947861085,-530.0,0.00028218,2]
[359349593,1745947861096,-470.0,0.00028218,2]
[359349594,1745947861106,-470.0,0.00028218,2]
[359349595,1745947861116,-470.0,0.00028218,2]
[359349596,1745947861126,-500.0,0.00028218,2]
[359349597,1745947861136,-698.33,0.00028218,2]
[359349598,1745947861145,-470.0,0.00028218,2]
[359349599,1745947861155,-470.0,0.00028218,2]
[359349600,1745947861165,-470.0,0.00028218,2]
[359349601,1745947861175,-470.0,0.00028218,2]
[359349602,1745947861184,-470.0,0.00028218,2]
[359349603,1745947861194,-470.0,0.00028218,2]
[359349604,1745947861204,-682.18,0.00028218,2]
[359349605,1745947861214,-484.96,0.00028218,2]
[359349606,1745947861224,-1272.68,0.00028218,2]
[359349607,1745947861234,-470.0,0.00028218,2]
[359349608,1745947861244,-500.0,0.00028218,2]
[359349609,1745947861254,-470.0,0.00028218,2]
[359349610,1745947861264,-470.0,0.00028218,2]
[359349611,1745947861274,-470.0,0.00028218,2]
[359349612,1745947861284,-470.0,0.00028218,2]
[359349613,1745947861295,-470.0,0.00028218,2]
[359349614,1745947861305,-470.0,0.00028218,2]
[359349615,1745947861315,-470.0,0.00028218,2]
[359349616,1745947861325,-470.0,0.00028218,2]
[359349617,1745947861335,-470.0,0.00028218,2]
[359349618,1745947861346,-470.0,0.00028218,2]
[359349619,1745947861356,-500.0,0.00028218,2]
[359349620,1745947861366,-470.0,0.00028218,2]
[359349621,1745947861376,-470.0,0.00028218,2]
[359349622,1745947861386,-470.0,0.00028218,2]
[359349623,1745947861395,-500.0,0.00028218,2]
[359349624,1745947861404,-645.48,0.00028218,2]
[359349625,1745947861413,-470.0,0.00028218,2]
[359349626,1745947861422,-470.0,0.00028218,2]
[359349627,1745947861431,-477.84237191,0.00028218,2]
[359349628,1745947861441,-764.0,0.00028218,2]
[359349629,1745947861451,-364.3352436,0.00028218,2]
[359349630,1745947861461,-470.0,0.00028218,2]
[359349631,1745947861471,-470.0,0.00028218,2]
[359349632,1745947861481,-470.0,0.00028218,2]
[359349633,1745947861490,-470.0,0.00028218,2]
[359349634,1745947861500,-572.78680917,0.00028218,2]
[359349635,1745947861510,-500.0,0.00028218,2]
[359349636,1745947861700,-589.56,0.00028218,2]
[359349637,1745947861718,-573.66350185,0.00028218,2]
[359349638,1745947861728,-573.83,0.00028218,2]
[359349639,1745947861738,-626.16,0.00028218,2]
[359349640,1745947861748,-470.0,0.00028218,2]
[359349641,1745947861757,-833.53,0.00028218,2]
[359349642,1745947861767,-470.0,0.00028218,2]
[359349643,1745947861777,-521.22,0.00028218,2]
[359349644,1745947861787,-3321.34,0.00028218,2]
[359349645,1745947861796,-875.29,0.00028218,2]
[359349646,1745947861806,-1030.03,0.00028218,2]
[359349647,1745947861816,-470.0,0.00028218,2]
[359349648,1745947861828,-470.0,0.00028218,2]
[359349649,1745947861839,-169.65471686,0.00028218,2]
[359349650,1745947861850,-1032.43,0.00028218,2]
[359349651,1745947861860,-751.7,0.00028218,2]
[359349652,1745947861869,-500.0,0.00028218,2]
[359349653,1745947861879,-500.0,0.00028218,2]
[359349654,1745947861888,-1097.95,0.00028218,2]
[359349655,1745947861898,-470.0,0.00028218,2]
[359349656,1745947861908,-470.0,0.00028218,2]
[359349657,1745947861918,-795.69,0.00028218,2]
[359349658,1745947861928,-470.0,0.00028218,2]
[359349659,1745947861938,-2406.8,0.00028218,2]
[359349660,1745947861947,-470.0,0.00028218,2]
[359349661,1745947861958,-500.0,0.00028218,2]
[359349662,1745947861967,-500.0,0.00028218,2]
[359349663,1745947861977,-932.55,0.00028218,2]
[359349664,1745947861987,-470.0,0.00028218,2]
[359349665,1745947861996,-470.0,0.00028218,2]
[359349666,1745947862006,-508.25,0.00028218,2]
[359349667,1745947862015,-470.0,0.00028218,2]
[359349668,1745947862024,-470.0,0.00028218,2]
[359349669,1745947862033,-934.89,0.00028218,2]
[359349670,1745947862042,-470.0,0.00028218,2]
[359349671,1745947862054,-470.0,0.00028218,2]
[359349672,1745947862063,-470.0,0.00028218,2]
[359349673,1745947862073,-470.0,0.00028218,2]
[359349674,1745947862082,-2409.88,0.00028218,2]
[359349675,1745947862091,-500.0,0.00028218,2]
[359349676,1745947862101,-3268.4,0.00028218,2]
[359349677,1745947862111,-647.27,0.00028218,2]
[359349678,1745947862120,-470.0,0.00028218,2]
[359349679,1745947862129,-470.0,0.00028218,2]
[359349680,1745947862139,-470.0,0.00028218,2]
[359349681,1745947862148,-470.0,0.00028218,2]
[359349682,1745947862157,-196.46882195,0.00028218,2]
[359349683,1745947862181,-6726.23117805,0.00028218,2]
[359349684,1745947862190,-642.69,0.00028218,2]
[359349685,1745947862199,-151.0,0.00028218,7]
[359349686,1745947862208,-916.21,0.00028218,2]
[359349687,1745947862218,-470.0,0.00028218,2]
[359349688,1745947862228,-151.0,0.00028218,7]
[359349689,1745947862237,-470.0,0.00028218,2]
[359349690,1745947862247,-470.0,0.00028218,2]
[359349691,1745947862257,-470.0,0.00028218,2]
[359349692,1745947862267,-151.0,0.00028218,7]
[359349693,1745947862276,-470.0,0.00028218,2]
[359349694,1745947862287,-151.0,0.00028218,7]
[359349695,1745947862296,-518.17,0.00028218,2]
[359349696,1745947862306,-470.0,0.00028218,2]
[359349697,1745947862316,-7070.34,0.00028218,2]
[359349698,1745947862325,-470.0,0.00028218,2]
[359349699,1745947862335,-470.0,0.00028218,2]
[359349700,1745947862344,-4782.9882452,0.00028218,2]
[359349701,1745947862356,-4576.73836545,0.00028218,2]
[359349702,1745947862632,-470.0,0.00027397,2]
[359349703,1745947862641,-40.59331866,0.00027778,2]
[359349704,1745947862654,-756.40668134,0.00027778,2]
[359349705,1745947862663,-57473.88338935,0.00028218,2]
[359349706,1745947862673,-717.85,0.00028218,2]
[359349707,1745947862682,-470.0,0.00028218,2]
[359349708,1745947862694,-470.0,0.00028218,2]
[359349709,1745947862703,-151.0,0.00028218,7]
[359349710,1745947862712,-1310.18,0.00028218,2]
[359349711,1745947862722,-470.0,0.00028218,2]
[359349712,1745947862731,-151.0,0.00028218,7]
[359349713,1745947862740,-629.86,0.00028218,2]
[359349714,1745947862749,-151.0,0.00028218,7]
[359349715,1745947862758,-151.0,0.00028218,7]
[359349716,1745947862767,-8522.3,0.00028218,2]
[359349717,1745947862775,-269.43309138,0.00028218,2]
[359349718,1745947862785,-297.93649731,0.00028218,18]
[359349719,1745947862804,-3956.45,0.00028218,2]
[359349720,1745947862821,-151.0,0.00028218,7]
[359349721,1745947862831,-470.0,0.00028218,2]
[359349722,1745947862841,-2080.1,0.00028218,2]
[359349723,1745947862853,-611.18,0.00028218,2]
[359349724,1745947862863,-524.77300255,0.00028219,2]
[359349725,1745947862873,-470.0,0.00028219,2]
[359349726,1745947862883,-520.81232684,0.00028219,2]
[359349727,1745947862894,-470.0,0.00028219,2]
[359349728,1745947862903,-470.0,0.00028219,2]
[359349729,1745947862914,-470.0,0.00028219,2]
[359349730,1745947862924,-537.18,0.00028219,2]
[359349731,1745947862934,-1034.02,0.00028219,2]
[359349732,1745947862944,-470.0,0.00028219,2]
[359349733,1745947862954,-470.0,0.00028219,2]
[359349734,1745947862964,-470.0,0.00028219,2]
[359349735,1745947862975,-470.0,0.00028219,2]
[359349736,1745947862986,-470.0,0.00028219,2]
[359349737,1745947862997,-470.0,0.00028219,2]
[359349738,1745947863007,-470.0,0.00028219,2]
[359349739,1745947863018,-470.0,0.00028219,2]
[359349740,1745947863032,-470.0,0.00028219,2]
[359349741,1745947863042,-470.0,0.00028219,2]
[359349742,1745947863052,-499.45209834,0.00028219,2]
[359349743,1745947863062,-470.0,0.00028219,2]
[359349744,1745947863073,-470.0,0.00028219,2]
[359349745,1745947863083,-470.0,0.00028219,2]
[359349746,1745947863094,-470.0,0.00028219,2]
[359349747,1745947863105,-517.81,0.00028219,2]
[359349748,1745947863116,-470.0,0.00028219,2]
[359349749,1745947863126,-300.51795715,0.00028219,2]
[359349750,1745947863136,-1109.71,0.00028219,2]
[359349751,1745947863147,-470.0,0.00028219,2]
[359349752,1745947863156,-470.0,0.00028219,2]
[359349753,1745947863166,-470.0,0.00028219,2]
[359349754,1745947863176,-470.0,0.00028219,2]
[359349755,1745947863186,-470.0,0.00028219,2]
[359349756,1745947863195,-470.0,0.00028219,2]
[359349757,1745947863205,-470.0,0.00028219,2]
[359349758,1745947863215,-470.0,0.00028219,2]
[359349759,1745947863226,-636.53,0.00028219,2]
[359349760,1745947863236,-523.07,0.00028219,2]
[359349761,1745947863246,-283.54,0.00028219,2]
[359349762,1745947863256,-470.0,0.00028219,2]
[359349763,1745947863267,-470.0,0.00028219,2]
[359349764,1745947863277,-470.0,0.00028219,2]
[359349765,1745947863287,-942.24,0.00028219,2]
[359349766,1745947863297,-470.0,0.00028219,2]
[359349767,1745947863306,-470.0,0.00028219,2]
[359349768,1745947863316,-960.77,0.00028219,2]
[359349769,1745947863326,-470.0,0.00028219,2]
[359349770,1745947863336,-470.0,0.00028219,2]
[359349771,1745947863346,-151.0,0.00028219,7]
[359349772,1745947863357,-470.0,0.00028219,2]
[359349773,1745947863367,-658.13,0.00028219,2]
[359349774,1745947863379,-2592.39,0.00028219,2]
[359349775,1745947863389,-1574.79,0.00028219,2]
[359349776,1745947863400,-470.0,0.00028219,2]
[359349777,1745947863410,-470.0,0.00028219,2]
[359349778,1745947863421,-194.41,0.00028219,2]
[359349779,1745947863431,-470.0,0.00028219,2]
[359349780,1745947863442,-2775.44,0.00028219,2]
[359349781,1745947863452,-581.1,0.00028219,2]
[359349782,1745947863462,-470.0,0.00028219,2]
[359349783,1745947863472,-470.0,0.00028219,2]
[359349784,1745947863482,-470.0,0.00028219,2]
[359349785,1745947863492,-470.0,0.00028219,2]
[359349786,1745947863502,-470.4,0.00028219,2]
[359349787,1745947863512,-470.0,0.00028219,2]
[359349788,1745947863522,-470.0,0.00028219,2]
[359349789,1745947863532,-487.16,0.00028219,2]
[359349790,1745947863542,-151.0,0.00028219,7]
[359349791,1745947863552,-6704.709698,0.00028219,2]
[359349792,1745947863563,-470.0,0.00028219,2]
[359349793,1745947863573,-470.0,0.00028219,2]
[359349794,1745947863583,-470.0,0.00028219,2]
[359349795,1745947863594,-470.0,0.00028219,2]
[359349796,1745947863604,-470.0,0.00028219,2]
[359349797,1745947863618,-470.0,0.00028219,2]
[359349798,1745947863629,-741.751675,0.00028219,2]
[359349799,1745947863639,-470.0,0.00028219,2]
[359349800,1745947863648,-500.42,0.00028219,2]
[359349801,1745947863659,-499.51,0.00028219,2]
[359349802,1745947863669,-492.205473,0.00028219,2]
[359349803,1745947863679,-470.0,0.00028219,2]
[359349804,1745947863691,-526.98,0.00028219,2]
[359349805,1745947863700,-588.92,0.00028219,2]
[359349806,1745947863710,-470.0,0.00028219,2]
[359349807,1745947863720,-166.3,0.00028219,2]
[359349808,1745947863729,-470.0,0.00028219,2]
[359349809,1745947863739,-619.94,0.00028219,2]
[359349810,1745947863749,-470.0,0.00028219,2]
[359349811,1745947863759,-151.0,0.00028219,7]
[359349812,1745947863769,-583.59,0.00028219,2]
[359349813,1745947863779,-750.5,0.00028219,2]
[359349814,1745947863789,-470.0,0.00028219,2]
[359349815,1745947863798,-697.9,0.00028219,2]
[359349816,1745947863808,-470.0,0.00028219,2]
[359349817,1745947863818,-587.33,0.00028219,2]
[359349818,1745947863828,-470.0,0.00028219,2]
[359349819,1745947863838,-470.0,0.00028219,2]
[359349820,1745947863848,-1199.7,0.00028219,2]
[359349821,1745947863858,-592.04,0.00028219,2]
[359349822,1745947863869,-470.0,0.00028219,2]
[359349823,1745947863879,-555.67,0.00028219,2]
[359349824,1745947863889,-596.34,0.00028219,2]
[359349825,1745947863899,-470.0,0.00028219,2]
[359349826,1745947863909,-470.0,0.00028219,2]
[359349827,1745947863918,-522.57,0.00028219,2]
[359349828,1745947863928,-455.97047916,0.00028219,2]
[359349829,1745947863938,-1756.82,0.00028219,2]
[359349830,1745947863948,-470.0,0.00028219,2]
[359349831,1745947863958,-470.0,0.00028219,2]
[359349832,1745947863968,-470.0,0.00028219,2]
[359349833,1745947863979,-470.0,0.00028219,2]
[359349834,1745947863988,-470.0,0.00028219,2]
[359349835,1745947863998,-470.0,0.00028219,2]
[359349836,1745947864008,-470.0,0.00028219,2]
[359349837,1745947864018,-717.9,0.00028219,2]
[359349838,1745947864103,-662.53,0.00028219,2]
[359349839,1745947864114,-470.0,0.00028219,2]
[359349840,1745947864124,-470.0,0.00028219,2]
[359349841,1745947864134,-756.04,0.00028219,2]
[359349842,1745947864143,-470.0,0.00028219,2]
[359349843,1745947864153,-669.21,0.00028219,2]
[359349844,1745947864162,-470.0,0.00028219,2]
[359349845,1745947864171,-470.0,0.00028219,2]
[359349846,1745947864180,-1144.68,0.00028219,2]
[359349847,1745947864190,-470.0,0.00028219,2]
[359349848,1745947864199,-470.0,0.00028219,2]
[359349849,1745947864208,-470.0,0.00028219,2]
[359349850,1745947864218,-470.0,0.00028219,2]
[359349851,1745947864228,-622.26,0.00028219,2]
[359349852,1745947864238,-470.0,0.00028219,2]
[359349853,1745947864248,-2044.04,0.00028219,2]
[359349854,1745947864257,-470.0,0.00028219,2]
[359349855,1745947864267,-759.73,0.00028219,2]
[359349856,1745947864277,-470.0,0.00028219,2]
[359349857,1745947864287,-470.0,0.00028219,2]
[359349858,1745947864296,-470.0,0.00028219,2]
[359349859,1745947864306,-1771.82,0.00028219,2]
[359349860,1745947864316,-1142.46,0.00028219,2]
[359349861,1745947864326,-696.96239434,0.00028219,2]
[359349862,1745947864383,-5.09746726,0.00028219,2]
[359349863,1745947864417,-283.95066456,0.00028219,2]
[359349864,1745947864429,-1300.69947384,0.00028219,2]
[359349865,1745947864438,-526.05,0.00028219,2]
[359349866,1745947864448,-550.32,0.00028219,2]
[359349867,1745947864458,-470.0,0.00028219,2]
[359349868,1745947864467,-470.0,0.00028219,2]
[359349869,1745947864477,-470.0,0.00028219,2]
[359349870,1745947864486,-433.93052616,0.00028219,2]
[359349871,1745947864498,-36.06947384,0.00028219,2]
[359349872,1745947864507,-521.12,0.00028219,2]
[359349873,1745947864516,-470.0,0.00028219,2]
[359349874,1745947864525,-402.23011175,0.00028219,2]
[359349875,1745947864535,-746.75,0.00028219,2]
[359349876,1745947864544,-470.0,0.00028219,2]
[359349877,1745947864553,-470.0,0.00028219,2]
[359349878,1745947864563,-470.0,0.00028219,2]
[359349879,1745947864573,-649.36,0.00028219,2]
[359349880,1745947864582,-470.0,0.00028219,2]
[359349881,1745947864592,-470.0,0.00028219,2]
[359349882,1745947864602,-470.0,0.00028219,2]
[359349883,1745947864615,-470.0,0.00028219,2]
[359349884,1745947864625,-801.87,0.00028219,2]
[359349885,1745947864634,-485.94,0.00028219,2]
[359349886,1745947864644,-470.0,0.00028219,2]
[359349887,1745947864654,-940.45,0.00028219,2]
[359349888,1745947864663,-1984.52,0.00028219,2]
[359349889,1745947864672,-1248.6,0.00028219,2]
[359349890,1745947864682,-470.0,0.00028219,2]
[359349891,1745947864691,-470.0,0.00028219,2]
[359349892,1745947864700,-470.0,0.00028219,2]
[359349893,1745947864709,-470.0,0.00028219,2]
[359349894,1745947864718,-470.0,0.00028219,2]
[359349895,1745947864727,-470.0,0.00028219,2]
[359349896,1745947864736,-2689.55,0.00028219,2]
[359349897,1745947864745,-470.0,0.00028219,2]
[359349898,1745947864754,-375.71041441,0.00028219,2]
[359349899,1745948001259,471.0,0.00030137,120]
[359349900,1745948037299,-164.66,0.0002424,2]
[359349901,1745948041876,200.0,0.00028788,117]
[359349902,1745948224146,173.13278995,0.00019954,2]
[359349907,1745948791044,-394.46814541,0.00024024,2]
[359349908,1745948797630,-85.59185459,0.00024024,2]
[359349909,1745948797653,-292.39797188,0.00025973,2]
[359349910,1745948805087,-246.51017353,0.00025973,2]
[359349911,1745948809498,-231.5093879,0.00025973,2]
[359349912,1745948814224,-227.5703451,0.00025973,2]
[359349913,1745948890179,156.12,0.0002583,120]
[359349914,1745948890721,156.12,0.00030135,120]
[359349915,1745948890868,156.12,0.0003444,120]
[359349925,1745949031753,-459.079733,0.00025724,2]
[359349926,1745949031762,-62.92052552,0.00025853,2]
[359349927,1745949031774,-4861.37947448,0.00025853,2]
[359349928,1745949031784,-200.0,0.00025879,2]
[359349929,1745949031794,-284.82626795,0.00025895,2]
[359349930,1745949031803,-337.66,0.00025942,2]
[359349931,1745949031813,-1200.0,0.00025972,2]
[359349932,1745949031823,-300.0,0.00025972,2]
[359349933,1745949031832,-150.0,0.00025973,2]
[359349934,1745949031842,-1269.12112796,0.00025973,2]
[359349935,1745949031865,-1209.1542531,0.00025973,2]
[359349936,1745949031877,-742.01575815,0.00025973,2]
[359349937,1745949031909,-520.59153593,0.00025973,2]
[359349938,1745949031963,-1567.52105347,0.00025973,2]
[359349939,1745949031975,-600.0,0.00025973,2]
[359349940,1745949031987,-527.22235995,0.00025973,2]
[359349941,1745949031998,-526.06603303,0.00025973,2]
[359349942,1745949032008,-300.0,0.00025995,2]
[359349943,1745949032018,-7900.14,0.00025996,2]
[359349944,1745949032030,-8286.95,0.00026056,2]
[359349945,1745949032040,-6049.87,0.00026098,2]
[359349946,1745949032050,-1514.85,0.00026098,2]
[359349947,1745949032059,-545.05,0.00026098,2]
[359349948,1745949032069,-534.0,0.00026103,2]
[359349950,1745949032079,-4000.0,0.00026103,2]
[359349952,1745949032088,-1000.0,0.00026104,2]
[359349954,1745949032098,-500.0,0.00026105,2]
[359349956,1745949032107,-200.0,0.00026109,2]
[359349957,1745949032118,-9827.93,0.00026138,2]
[359349958,1745949032128,-200.0,0.00026143,2]
[359349959,1745949032138,-161.54,0.00026144,2]
[359349960,1745949032149,-358.84,0.00026149,2]
[359349961,1745949032159,-207.4,0.00026171,2]
[359349962,1745949032168,-701.1363383,0.00026171,2]
[359349963,1745949032178,-480.06,0.00026288,2]
[359349964,1745949032187,-500.0,0.00026408,2]
[359349965,1745949032196,-166.03,0.00026897,2]
[359349966,1745949032204,-2082.1308889,0.000269,7]
[359349967,1745949032214,-1294.5185,0.00026966,2]
[359349969,1745949032223,-5709.19,0.00026988,2]
[359349971,1745949032232,-262.01599656,0.00026994,2]
[359349973,1745949032241,-229.5572981,0.00026994,2]
[359349975,1745949032250,-5709.19,0.00026995,2]
[359349977,1745949032259,-5709.19,0.00027002,2]
[359349979,1745949032269,-671.62998679,0.00027009,2]
[359349983,1745949032297,-469.9405751,0.00027009,2]
[359349985,1745949032308,-798.82865656,0.00027009,2]
[359349988,1745949037744,-3768.79078155,0.00027009,2]
[359349989,1745949037754,-4354.33901554,0.00027016,2]
[359349990,1745949037904,-1354.85098446,0.00027016,2]
[359349991,1745949037912,-5709.19,0.00027023,2]
[359349992,1745949037921,-5709.19,0.0002703,2]
[359349993,1745949037929,-942.68102267,0.00027037,2]
[359349994,1745949037938,-5709.19,0.00027038,2]
[359349995,1745949037947,-5709.19,0.00027045,2]
[359349996,1745949037955,-5709.19,0.00027052,2]
[359349997,1745949037964,-5709.19,0.00027059,2]
[359349998,1745949037973,-5709.19,0.00027066,2]
[359349999,1745949037982,-5709.19,0.00027073,2]
[359350000,1745949037991,-5709.19,0.0002708,2]
[359350001,1745949038001,-5709.19,0.00027087,2]
[359350002,1745949038010,-5709.19,0.00027094,2]
[359350004,1745949038019,-5709.19,0.00027101,2]
[359350006,1745949038030,-5709.19,0.00027108,2]
[359350008,1745949038041,-5709.19,0.00027116,2]
[359350010,1745949038050,-5709.19,0.00027123,2]
[359350012,1745949038059,-4965.9037,0.00027287,2]
[359350013,1745949038069,-3485.3027,0.00027287,2]
[359350014,1745949038079,-2375.4535,0.00027287,2]
[359350016,1745949038087,-333.59446552,0.00027287,2]
[359350018,1745949038097,-238.46551104,0.00027287,2]
[359350020,1745949038107,-161.7485,0.00027297,2]
[359350021,1745949038116,-344.3544,0.00027297,2]
[359350023,1745949038126,-862.7513,0.00027297,2]
[359350024,1745949038136,-7553.0992,0.00027297,2]
[359350025,1745949038146,-5264.1828,0.00027297,2]
[359350026,1745949038155,-3402.46960682,0.00027297,2]
[359350027,1745949038164,-2235.34,0.000273,2]
[359350028,1745949038174,-500.0,0.00027373,2]
[359350029,1745949038183,-500.0,0.00027373,2]
[359350030,1745949038193,-8999.01001086,0.00027377,2]
[359350031,1745949038251,-205.81649104,0.00027386,2]
[359350032,1745949038260,-188.41918259,0.00027386,2]
[359350033,1745949038269,-184.07122616,0.00027386,2]